[Event "Srdja Dragasevic Memorial-A 2024"]
[Site "Cetinje"]
[Date "2024.06.27"]
[Round "7.8"]
[White "Kosic, Dragan"]
[Black "Xie, Bryan"]
[Result "1/2-1/2"]
[ECO "D39"]
[WhiteElo "2382"]
[BlackElo "2281"]
[Annotator "RC"]
[PlyCount "90"]
[EventDate "2024.06.23"]
[EventType "swiss"]
[EventCountry "MNE"]
[SourceTitle "playchess.com"]
[Source "ChessBase"]
[SourceQuality "1"]
[TimeControl "40/5400+30:1800+30"]

1. d4 {[%emt 0:00:42]} Nf6 {[%emt 0:00:30]} 2. Nf3 {[%emt 0:00:30]} d5 {[%emt 0:00:10]} 3. c4 {[%emt 0:00:58]} e6 {[%emt 0:01:01]} 4. Nc3 {[%emt 0:01:18]} dxc4 {[%emt 0:00:26]} 5. e4 {[%emt 0:00:55]} Bb4 {[%emt 0:00:36]} 6. Bg5 {[%emt 0:00:49]} h6 {[%emt 0:00:27]} 7. Bxf6 {[%emt 0:00:32]} Qxf6 {[%emt 0:00:07]} 8. Bxc4 {[%emt 0:00:58]} c5 {[%emt 0:00:42]} 9. O-O {[%emt 0:04:16]} cxd4 {[%emt 0:00:08]} 10. Nb5 {[%emt 0:05:05]} Qe7 {[%emt 0:00:16]} 11. Qxd4 {[%emt 0:06:13]} O-O {[%emt 0:00:39]} 12. Nxa7 {[%emt 0:04:31]} Bc5 {[%emt 0:00:14]} 13. Nxc8 {[%emt 0:00:28]} Rxc8 {[%emt 0:00:07]} 14. Qd3 {[%emt 0:01:00]} Nc6 {[%emt 0:00:12]} 15. a3 {[%emt 0:04:14]} Rd8 {[%emt 0:00:54]} 16. Qe2 {[%emt 0:02:18]} Nd4 {[%emt 0:00:17]} 17. Nxd4 {[%emt 0:00:16]} Rxd4 {[%emt 0:00:14]} 18. Rad1 {[%emt 0:02:54]} Rad8 {[%emt 0:03:14]} 19. Rd3 {[%emt 0:15:49]} Bb6 {[%emt 0:17:28]} 20. Rfd1 {[%emt 0:05:39]} Qc5 {[%emt 0:00:44]} 21. Rxd4 {[%emt 0:03:12]} Rxd4 {[%emt 0:00:07]} 22. Rxd4 {[%emt 0:06:43]} Qxd4 {[%emt 0:02:21]} 23. g3 {[%emt 0:00:18]} Kf8 {[%emt 0:03:06]} 24. Kg2 {[%emt 0:00:16]} Bc7 {[%emt 0:08:54]} 25. a4 {[%emt 0:02:43]} Ba5 {[%emt 0:08:28]} 26. b3 {[%emt 0:01:31]} Bb6 {[%emt 0:06:05]} 27. Qf3 {[%emt 0:05:52]} Kg8 {[%emt 0:00:48]} 28. e5 {[%emt 0:03:10]} Bc5 {[%emt 0:00:48]} 29. Bb5 {[%emt 0:14:28]} Kf8 {[%emt 0:01:54]} 30. a5 {[%emt 0:00:38]} Qxe5 {[%emt 0:02:45]} 31. Qxb7 {[%emt 0:00:15]} Qd4 {[%emt 0:00:15]} 32. Qf3 {[%emt 0:02:07]} g5 {[%emt 0:03:14]} 33. h3 {[%emt 0:01:24]} h5 {[%emt 0:00:53]} 34. Bc4 {[%emt 0:01:33]} g4 {[%emt 0:00:58]} 35. hxg4 {[%emt 0:00:19]} hxg4 {[%emt 0:00:02]} 36. Qe2 {[%emt 0:00:40]} Ke7 {[%emt 0:01:29]} 37. a6 {[%emt 0:00:11]} Kf8 {[%emt 0:02:29]} 38. Qc2 {[%emt 0:01:21]} Ke7 {[%emt 0:01:57]} 39. Bd3 {[%emt 0:00:50]} f5 {[%emt 0:05:16]} 40. Bc4 {[%emt 0:00:00]} Qh8 {[%emt 0:00:00]} 41. Qd3 {[%emt 0:08:12]} Qh3+ {[%emt 0:25:07]} 42. Kg1 {[%emt 0:00:07]} f4 {[%emt 0:00:03]} 43. Bxe6 {[%emt 0:01:56]} Qxg3+ {[%emt 0:01:48]} 44. Qxg3 {[%emt 0:00:19]} fxg3 {[%emt 0:00:03]} 45. Bxg4 {[%emt 0:00:11]} gxf2+ {[%emt 0:00:03]} 1/2-1/2

[Event "Srdja Dragasevic Memorial-A 2024"]
[Site "Cetinje"]
[Date "2024.06.27"]
[Round "7.9"]
[White "Alimpic, Aleksa"]
[Black "Skvortsov, Andrei"]
[Result "0-1"]
[ECO "C01"]
[WhiteElo "2281"]
[BlackElo "2331"]
[Annotator "RC"]
[PlyCount "80"]
[EventDate "2024.06.23"]
[EventType "swiss"]
[EventCountry "MNE"]
[SourceTitle "playchess.com"]
[Source "ChessBase"]
[SourceQuality "1"]
[TimeControl "40/5400+30:1800+30"]

1. d4 {[%emt 0:00:01]} e6 {[%emt 0:07:54]} 2. e4 {[%emt 0:00:06]} d5 {[%emt 0:00:05]} 3. exd5 {[%emt 0:00:05]} exd5 {[%emt 0:00:05]} 4. Bd3 {[%emt 0:00:09]} Qf6 {[%emt 0:02:55]} 5. c3 {[%emt 0:09:19]} Bd6 {[%emt 0:00:14]} 6. Qf3 {[%emt 0:01:04]} Qxf3 {[%emt 0:00:08]} 7. Nxf3 {[%emt 0:00:07]} Ne7 {[%emt 0:00:19]} 8. Nbd2 {[%emt 0:03:45]} f6 {[%emt 0:00:48]} 9. Nf1 {[%emt 0:02:15]} Bf5 {[%emt 0:00:13]} 10. Ke2 {[%emt 0:02:33]} Bxd3+ {[%emt 0:10:12]} 11. Kxd3 {[%emt 0:00:17]} Nf5 {[%emt 0:00:49]} 12. Ne3 {[%emt 0:19:50]} Nxe3 {[%emt 0:00:10]} 13. Bxe3 {[%emt 0:00:07]} Nc6 {[%emt 0:00:39]} 14. Rae1 {[%emt 0:04:53]} Ne7 {[%emt 0:06:54]} 15. a4 {[%emt 0:02:40]} a5 {[%emt 0:00:41]} 16. Re2 {[%emt 0:02:34]} Kf7 {[%emt 0:02:23]} 17. g3 {[%emt 0:01:12]} g5 {[%emt 0:00:12]} 18. h4 {[%emt 0:01:20]} g4 {[%emt 0:00:07]} 19. Ne1 {[%emt 0:01:10]} h5 {[%emt 0:04:49]} 20. Kd2 {[%emt 0:05:09]} Rhe8 {[%emt 0:04:52]} 21. Nd3 {[%emt 0:01:16]} Ng6 {[%emt 0:00:18]} 22. Rhe1 {[%emt 0:04:26]} Re4 {[%emt 0:01:04]} 23. Bh6 {[%emt 0:07:14]} Rh8 {[%emt 0:00:35]} 24. Be3 {[%emt 0:00:06]} b6 {[%emt 0:01:25]} 25. Kd1 {[%emt 0:00:28]} Rhe8 {[%emt 0:01:39]} 26. Bh6 {[%emt 0:01:34]} f5 {[%emt 0:03:39]} 27. Bg5 {[%emt 0:10:03]} c6 {[%emt 0:03:02]} 28. Kd2 {[%emt 0:00:16]} c5 {[%emt 0:01:04]} 29. dxc5 {[%emt 0:02:10]} bxc5 {[%emt 0:00:15]} 30. Rxe4 {[%emt 0:01:11]} fxe4 {[%emt 0:00:17]} 31. Nf4 {[%emt 0:04:14]} Nxf4 {[%emt 0:05:34]} 32. gxf4 {[%emt 0:00:06]} Kg6 {[%emt 0:00:07]} 33. Kc2 {[%emt 0:00:41]} d4 {[%emt 0:00:28]} 34. Rd1 {[%emt 0:00:48]} d3+ {[%emt 0:00:21]} 35. Kb3 {[%emt 0:02:22]} Kf5 {[%emt 0:00:23]} 36. Kc4 {[%emt 0:00:10]} Rb8 {[%emt 0:01:23]} 37. Rd2 {[%emt 0:01:01]} Bxf4 {[%emt 0:00:15]} 38. Bxf4 {[%emt 0:00:04]} Kxf4 {[%emt 0:00:02]} 39. Kxc5 {[%emt 0:00:06]} g3 {[%emt 0:00:14]} 40. fxg3+ {[%emt 0:00:00]} Ke3 {[%emt 0:00:00]} 0-1

[Event "Srdja Dragasevic Memorial-A 2024"]
[Site "Cetinje"]
[Date "2024.06.27"]
[Round "7.11"]
[White "Nikolic, Nebojsa"]
[Black "Atakisi, Umut"]
[Result "0-1"]
[ECO "D94"]
[WhiteElo "2268"]
[BlackElo "2335"]
[Annotator "RC"]
[PlyCount "126"]
[EventDate "2024.06.23"]
[EventType "swiss"]
[EventCountry "MNE"]
[SourceTitle "playchess.com"]
[Source "ChessBase"]
[SourceQuality "1"]
[TimeControl "40/5400+30:1800+30"]

1. Nf3 {[%emt 0:01:04]} c5 {[%emt 0:06:41]} 2. e3 {[%emt 0:01:13]} g6 {[%emt 0:01:01]} 3. d4 {[%emt 0:00:10]} Bg7 {[%emt 0:05:50]} 4. c4 {[%emt 0:01:16]} cxd4 {[%emt 0:01:19]} 5. exd4 {[%emt 0:00:11]} d5 {[%emt 0:00:04]} 6. Nc3 {[%emt 0:01:17]} Nf6 {[%emt 0:00:06]} 7. Be2 {[%emt 0:07:32]} dxc4 {[%emt 0:02:17]} 8. Bxc4 {[%emt 0:02:19]} O-O {[%emt 0:00:07]} 9. O-O {[%emt 0:00:14]} Bg4 {[%emt 0:05:48]} 10. Re1 {[%emt 0:09:34]} Nc6 {[%emt 0:20:24]} 11. d5 {[%emt 0:00:34]} Na5 {[%emt 0:00:27]} 12. Bf1 {[%emt 0:02:59]} e6 {[%emt 0:09:52]} 13. dxe6 {[%emt 0:15:15]} Bxe6 {[%emt 0:01:23]} 14. Qa4 {[%emt 0:01:21]} Nd5 {[%emt 0:20:41]} 15. Bg5 {[%emt 0:11:44]} Nxc3 {[%emt 0:03:45]} 16. bxc3 {[%emt 0:00:08]} Qc7 {[%emt 0:00:50]} 17. Bf4 {[%emt 0:04:05]} Qc5 {[%emt 0:01:32]} 18. Be3 {[%emt 0:03:44]} Qc7 {[%emt 0:00:34]} 19. Bf4 {[%emt 0:04:03]} Qc5 {[%emt 0:00:32]} 20. Be3 {[%emt 0:03:38]} Qc7 {[%emt 0:00:03]} 21. Qh4 {[%emt 0:09:12]} Bd5 {[%emt 0:00:59]} 22. Bf4 {[%emt 0:02:55]} Qc8 {[%emt 0:02:40]} 23. Ne5 {[%emt 0:04:04]} Be6 {[%emt 0:05:58]} 24. Bh6 {[%emt 0:02:32]} Qd8 {[%emt 0:01:19]} 25. Qf4 {[%emt 0:00:37]} Bxh6 {[%emt 0:01:11]} 26. Qxh6 {[%emt 0:00:02]} Qf6 {[%emt 0:00:26]} 27. Re3 {[%emt 0:04:42]} Rac8 {[%emt 0:02:11]} 28. Rae1 {[%emt 0:00:14]} Nc6 {[%emt 0:01:46]} 29. Nd3 {[%emt 0:03:35]} Ne7 {[%emt 0:01:27]} 30. g4 {[%emt 0:02:32]} Nd5 {[%emt 0:00:56]} 31. Rh3 {[%emt 0:00:42]} Qg7 {[%emt 0:00:01]} 32. Qh4 {[%emt 0:00:46]} Rxc3 {[%emt 0:00:50]} 33. Ne5 {[%emt 0:00:39]} Rxh3 {[%emt 0:00:57]} 34. Bxh3 {[%emt 0:00:05]} Nf4 {[%emt 0:00:43]} 35. Bf1 {[%emt 0:00:01]} g5 {[%emt 0:01:01]} 36. Qg3 {[%emt 0:00:09]} Bd5 {[%emt 0:01:42]} 37. Qa3 {[%emt 0:00:45]} a6 {[%emt 0:00:38]} 38. Qd6 {[%emt 0:01:34]} Re8 {[%emt 0:00:39]} 39. Re3 {[%emt 0:00:20]} Qf8 {[%emt 0:00:43]} 40. Qf6 {[%emt 0:00:00]} Qg7 {[%emt 0:00:00]} 41. Nd7 {[%emt 0:04:07]} Be6 {[%emt 0:03:38]} 42. Qxg7+ {[%emt 0:05:38]} Kxg7 {[%emt 0:00:05]} 43. Nc5 {[%emt 0:00:06]} Rc8 {[%emt 0:07:07]} 44. Nxe6+ {[%emt 0:00:05]} Nxe6 {[%emt 0:00:52]} 45. a4 {[%emt 0:00:59]} Rc1 {[%emt 0:01:31]} 46. Re5 {[%emt 0:05:28]} Ra1 {[%emt 0:04:11]} 47. a5 {[%emt 0:00:28]} Kf6 {[%emt 0:00:24]} 48. Rf5+ {[%emt 0:00:13]} Ke7 {[%emt 0:00:06]} 49. Rd5 {[%emt 0:05:18]} h6 {[%emt 0:00:12]} 50. f3 {[%emt 0:00:08]} Ra2 {[%emt 0:03:34]} 51. Re5 {[%emt 0:01:28]} Rc2 {[%emt 0:01:35]} 52. Re1 {[%emt 0:03:20]} Rc5 {[%emt 0:01:15]} 53. Rb1 {[%emt 0:00:08]} Nd8 {[%emt 0:00:21]} 54. Rb6 {[%emt 0:00:54]} f6 {[%emt 0:00:31]} 55. f4 {[%emt 0:00:47]} Rxa5 {[%emt 0:00:59]} 56. f5 {[%emt 0:00:04]} Rc5 {[%emt 0:01:25]} 57. h3 {[%emt 0:00:21]} Rc6 {[%emt 0:00:42]} 58. Rb1 {[%emt 0:00:26]} b5 {[%emt 0:00:24]} 59. Bg2 {[%emt 0:00:29]} Rd6 {[%emt 0:00:25]} 60. Ra1 {[%emt 0:01:30]} Kd7 {[%emt 0:00:11]} 61. Ra2 {[%emt 0:00:24]} Kc7 {[%emt 0:00:43]} 62. Re2 {[%emt 0:00:09]} a5 {[%emt 0:00:36]} 63. Bf1 {[%emt 0:00:29]} Kb6 {[%emt 0:00:59]} 0-1

[Event "Srdja Dragasevic Memorial-A 2024"]
[Site "Cetinje"]
[Date "2024.06.27"]
[Round "7.12"]
[White "Vujosevic, Vladimir"]
[Black "Asllani, Muhamet"]
[Result "1/2-1/2"]
[ECO "C77"]
[WhiteElo "2306"]
[BlackElo "2219"]
[Annotator "RC"]
[PlyCount "179"]
[EventDate "2024.06.23"]
[EventType "swiss"]
[EventCountry "MNE"]
[SourceTitle "playchess.com"]
[Source "ChessBase"]
[SourceQuality "1"]
[TimeControl "40/5400+30:1800+30"]

1. e4 {[%emt 1:31:00]} e5 {[%emt 0:02:28]} 2. Nf3 {[%emt 0:00:00]} Nc6 {[%emt 0:00:08]} 3. Bb5 {[%emt 0:00:00]} a6 {[%emt 0:00:07]} 4. Ba4 {[%emt 0:00:00]} Nf6 {[%emt 0:00:07]} 5. d3 {[%emt 0:00:00]} Bc5 {[%emt 0:01:16]} 6. c3 {[%emt 0:00:00]} O-O {[%emt 0:00:15]} 7. Nbd2 {[%emt 0:00:00]} b5 {[%emt 0:00:13]} 8. Bb3 {[%emt 0:00:00]} d6 {[%emt 0:00:19]} 9. O-O {[%emt 0:00:00]} h6 {[%emt 0:01:28]} 10. Re1 {[%emt 0:00:00]} Ng4 {[%emt 0:00:12]} 11. Re2 {[%emt 0:00:00]} Be6 {[%emt 0:00:34]} 12. h3 {[%emt 0:00:00]} Nf6 {[%emt 0:00:04]} 13. Nf1 {[%emt 0:00:00]} Re8 {[%emt 0:02:26]} 14. Bxe6 {[%emt 0:00:00]} fxe6 {[%emt 0:00:50]} 15. d4 {[%emt 0:00:00]} Bb6 {[%emt 0:01:19]} 16. Ng3 {[%emt 0:00:00]} Qe7 {[%emt 0:03:51]} 17. a4 {[%emt 0:00:00]} Rab8 {[%emt 0:00:41]} 18. axb5 {[%emt 0:00:00]} axb5 {[%emt 0:00:04]} 19. Be3 {[%emt 0:00:00]} exd4 {[%emt 0:00:34]} 20. Nxd4 {[%emt 0:00:00]} Ne5 {[%emt 0:04:13]} 21. f4 {[%emt 0:00:00]} Nc4 {[%emt 0:00:52]} 22. Bf2 {[%emt 0:00:00]} Qf7 {[%emt 0:01:48]} 23. b3 {[%emt 0:00:00]} Na5 {[%emt 0:02:13]} 24. Rea2 {[%emt 0:00:00]} e5 {[%emt 0:00:45]} 25. b4 {[%emt 0:00:00]} Nc4 {[%emt 0:02:37]} 26. Nc6 {[%emt 0:00:00]} Bxf2+ {[%emt 0:01:32]} 27. Rxf2 {[%emt 0:00:00]} Rb6 {[%emt 0:01:25]} 28. fxe5 {[%emt 0:00:00]} dxe5 {[%emt 0:00:21]} 29. Na5 {[%emt 0:00:00]} Rd6 {[%emt 0:01:48]} 30. Qe1 {[%emt 0:00:00]} Rd3 {[%emt 0:02:23]} 31. Nf5 {[%emt 0:00:00]} Nd6 {[%emt 0:02:52]} 32. Nxd6 {[%emt 0:00:00]} cxd6 {[%emt 0:01:57]} 33. Kh2 {[%emt 0:00:00]} Qg6 {[%emt 0:01:18]} 34. Re2 {[%emt 0:00:00]} Rc8 {[%emt 0:00:28]} 35. Rc1 {[%emt 0:00:00]} Nh5 {[%emt 0:00:10]} 36. Re3 {[%emt 0:00:00]} Nf4 {[%emt 0:01:37]} 37. g3 {[%emt 0:01:58]} Rxe3 {[%emt 0:00:14]} 38. Qxe3 {[%emt 0:00:18]} Ne6 {[%emt 0:00:26]} 39. Nb3 {[%emt 0:01:10]} Ng5 {[%emt 0:00:35]} 40. Nd2 {[%emt 0:00:00]} Qe6 {[%emt 0:00:00]} 41. h4 {[%emt 0:01:01]} Qh3+ {[%emt 0:01:41]} 42. Kg1 {[%emt 0:04:21]} Nh7 {[%emt 0:01:13]} 43. Qf3 {[%emt 0:05:41]} Ra8 {[%emt 0:02:02]} 44. Nf1 {[%emt 0:03:54]} Rf8 {[%emt 0:04:16]} 45. Qg2 {[%emt 0:00:34]} Qd7 {[%emt 0:00:02]} 46. Qe2 {[%emt 0:02:03]} Nf6 {[%emt 0:00:28]} 47. Nd2 {[%emt 0:04:37]} Ng4 {[%emt 0:02:34]} 48. Nf3 {[%emt 0:00:46]} h5 {[%emt 0:01:21]} 49. Kg2 {[%emt 0:00:55]} Qa7 {[%emt 0:01:51]} 50. Re1 {[%emt 0:01:10]} g6 {[%emt 0:00:42]} 51. Qd2 {[%emt 0:00:19]} Kg7 {[%emt 0:00:18]} 52. Re2 {[%emt 0:04:30]} Qf7 {[%emt 0:01:42]} 53. Qd3 {[%emt 0:00:40]} Rc8 {[%emt 0:05:53]} 54. Ng5 {[%emt 0:03:45]} Qc4 {[%emt 0:00:28]} 55. Qxc4 {[%emt 0:02:19]} Rxc4 {[%emt 0:00:08]} 56. Rd2 {[%emt 0:00:31]} Rxc3 {[%emt 0:00:09]} 57. Rxd6 {[%emt 0:00:25]} Rc4 {[%emt 0:00:29]} 58. Rd7+ {[%emt 0:00:58]} Kf8 {[%emt 0:00:12]} 59. Ne6+ {[%emt 0:03:40]} Ke8 {[%emt 0:01:05]} 60. Rb7 {[%emt 0:00:15]} Rxb4 {[%emt 0:00:36]} 61. Rxb5 {[%emt 0:00:39]} Rxe4 {[%emt 0:00:15]} 62. Ng5 {[%emt 0:01:14]} Re2+ {[%emt 0:00:40]} 63. Kf3 {[%emt 0:00:30]} Re3+ {[%emt 0:00:17]} 64. Kg2 {[%emt 0:00:06]} e4 {[%emt 0:00:22]} 65. Rb4 {[%emt 0:00:21]} Re2+ {[%emt 0:00:13]} 66. Kf1 {[%emt 0:00:16]} Rf2+ {[%emt 0:00:07]} 67. Ke1 {[%emt 0:00:08]} Rg2 {[%emt 0:00:45]} 68. Nxe4 {[%emt 0:00:14]} Ke7 {[%emt 0:00:12]} 69. Rb6 {[%emt 0:00:19]} Ne5 {[%emt 0:00:46]} 70. Kf1 {[%emt 0:00:20]} Ra2 {[%emt 0:00:07]} 71. Ng5 {[%emt 0:00:12]} Ra1+ {[%emt 0:00:19]} 72. Kg2 {[%emt 0:00:09]} Ra2+ {[%emt 0:00:11]} 73. Kf1 {[%emt 0:00:08]} Ra1+ {[%emt 0:00:57]} 74. Ke2 {[%emt 0:00:09]} Ng4 {[%emt 0:00:52]} 75. Rxg6 {[%emt 0:00:30]} Ra3 {[%emt 0:00:30]} 76. Rg7+ {[%emt 0:00:30]} Kf6 {[%emt 0:00:30]} 77. Rf7+ {[%emt 0:00:30]} Kg6 {[%emt 0:00:05]} 78. Rf3 {[%emt 0:00:13]} Ra2+ {[%emt 0:00:04]} 79. Ke1 {[%emt 0:00:14]} Ne5 {[%emt 0:00:17]} 80. Rb3 {[%emt 0:00:47]} Nc4 {[%emt 0:02:54]} 81. Rb5 {[%emt 0:00:37]} Ne3 {[%emt 0:01:03]} 82. Nh3 {[%emt 0:01:43]} Nc2+ {[%emt 0:01:06]} 83. Kd1 {[%emt 0:00:15]} Ne3+ {[%emt 0:00:03]} 84. Kc1 {[%emt 0:00:14]} Ng2 {[%emt 0:00:52]} 85. Rg5+ {[%emt 0:00:27]} Kh6 {[%emt 0:00:00]} 86. Kd1 {[%emt 0:00:15]} Ra3 {[%emt 0:02:07]} 87. Ke2 {[%emt 0:00:41]} Nxh4 {[%emt 0:00:36]} 88. gxh4 {[%emt 0:00:54]} Rxh3 {[%emt 0:00:07]} 89. Ra5 {[%emt 0:00:12]} Rxh4 {[%emt 0:00:05]} 90. Kf3 {[%emt 0:00:10]} 1/2-1/2

[Event "Srdja Dragasevic Memorial-A 2024"]
[Site "Cetinje"]
[Date "2024.06.27"]
[Round "7.13"]
[White "Willy, Stephen"]
[Black "Holland, James P"]
[Result "1-0"]
[ECO "B22"]
[WhiteElo "2046"]
[BlackElo "2252"]
[Annotator "RC"]
[PlyCount "81"]
[EventDate "2024.06.23"]
[EventType "swiss"]
[EventCountry "MNE"]
[SourceTitle "playchess.com"]
[Source "ChessBase"]
[SourceQuality "1"]
[TimeControl "40/5400+30:1800+30"]

1. e4 {[%emt 0:00:01]} c5 {[%emt 0:00:56]} 2. Nf3 {[%emt 0:00:21]} e6 {[%emt 0:03:16]} 3. c3 {[%emt 0:01:03]} d5 {[%emt 0:02:00]} 4. exd5 {[%emt 0:02:33]} exd5 {[%emt 0:00:19]} 5. d4 {[%emt 0:00:06]} Nc6 {[%emt 0:01:01]} 6. Bb5 {[%emt 0:00:17]} Bd6 {[%emt 0:03:18]} 7. O-O {[%emt 0:01:00]} Nge7 {[%emt 0:02:39]} 8. dxc5 {[%emt 0:08:57]} Bxc5 {[%emt 0:00:26]} 9. Nbd2 {[%emt 0:01:13]} a6 {[%emt 0:03:26]} 10. Bd3 {[%emt 0:00:43]} O-O {[%emt 0:03:10]} 11. h3 {[%emt 0:04:00]} Bf5 {[%emt 0:10:20]} 12. Bxf5 {[%emt 0:02:10]} Nxf5 {[%emt 0:00:05]} 13. Nb3 {[%emt 0:00:09]} Ba7 {[%emt 0:00:34]} 14. Qd3 {[%emt 0:00:14]} Qd7 {[%emt 0:00:26]} 15. Bf4 {[%emt 0:01:51]} Rad8 {[%emt 0:04:43]} 16. Rad1 {[%emt 0:10:01]} Rfe8 {[%emt 0:07:36]} 17. Rd2 {[%emt 0:01:09]} Re4 {[%emt 0:02:03]} 18. Bh2 {[%emt 0:00:53]} h6 {[%emt 0:03:14]} 19. Rfd1 {[%emt 0:06:16]} Qe6 {[%emt 0:02:01]} 20. Qf1 {[%emt 0:03:00]} b5 {[%emt 0:09:34]} 21. Nc1 {[%emt 0:00:55]} g5 {[%emt 0:00:23]} 22. g4 {[%emt 0:10:48]} Nfe7 {[%emt 0:01:45]} 23. Ne2 {[%emt 0:00:23]} f5 {[%emt 0:02:59]} 24. Ng3 {[%emt 0:02:00]} Rf4 {[%emt 0:04:54]} 25. Re1 {[%emt 0:00:48]} Qf7 {[%emt 0:00:11]} 26. Nxf5 {[%emt 0:02:05]} Nxf5 {[%emt 0:04:19]} 27. Bxf4 {[%emt 0:00:11]} Nh4 {[%emt 0:08:17]} 28. Nxh4 {[%emt 0:01:47]} Qxf4 {[%emt 0:00:10]} 29. Qd3 {[%emt 0:00:20]} gxh4 {[%emt 0:01:56]} 30. Qg6+ {[%emt 0:00:51]} Kh8 {[%emt 0:03:00]} 31. Re8+ {[%emt 0:07:57]} Rxe8 {[%emt 0:00:04]} 32. Qxe8+ {[%emt 0:00:08]} Kg7 {[%emt 0:01:00]} 33. Qd7+ {[%emt 0:02:45]} Kh8 {[%emt 0:02:04]} 34. Re2 {[%emt 0:03:53]} Bxf2+ {[%emt 0:01:34]} 35. Rxf2 {[%emt 0:00:47]} Qg3+ {[%emt 0:00:06]} 36. Kf1 {[%emt 0:00:32]} Qd3+ {[%emt 0:00:16]} 37. Re2 {[%emt 0:00:47]} Qxh3+ {[%emt 0:01:58]} 38. Ke1 {[%emt 0:01:53]} Qg3+ {[%emt 0:00:09]} 39. Kd2 {[%emt 0:06:50]} Qf4+ {[%emt 0:00:17]} 40. Kd1 {[%emt 0:00:00]} Qf1+ {[%emt 0:00:00]} 41. Re1 {[%emt 0:00:31]} 1-0

[Event "Srdja Dragasevic Memorial-A 2024"]
[Site "Cetinje"]
[Date "2024.06.27"]
[Round "7.14"]
[White "Kolmakov, Ivan D."]
[Black "Guleryuz, Kuzey"]
[Result "0-1"]
[ECO "C00"]
[WhiteElo "1902"]
[BlackElo "1971"]
[Annotator "NA RC"]
[PlyCount "68"]
[EventDate "2024.06.23"]
[EventType "swiss"]
[EventCountry "MNE"]
[SourceTitle "playchess.com"]
[Source "ChessBase"]
[SourceQuality "1"]
[TimeControl "40/5400+30:1800+30"]

1. e4 {[%emt 0:00:08]} e6 {[%emt 0:00:05]} 2. Nf3 {[%emt 0:00:08]} d5 {[%emt 0:00:07]} 3. e5 {[%emt 0:00:17]} c5 {[%emt 0:00:22]} 4. b4 {[%emt 0:00:15]} cxb4 {[%emt 0:02:33]} 5. a3 {[%emt 0:00:11]} b3 {[%emt 0:18:03]} 6. cxb3 {[%emt 0:00:34]} Nc6 {[%emt 0:00:22]} 7. d4 {[%emt 0:01:11]} Bd7 {[%emt 0:02:07]} 8. Nc3 {[%emt 0:04:16]} Rc8 {[%emt 0:04:11]} 9. Bg5 {[%emt 0:13:28]} Be7 {[%emt 0:05:21]} 10. Bxe7 {[%emt 0:04:18]} Ngxe7 {[%emt 0:00:39]} 11. Nb5 {[%emt 0:02:20]} O-O {[%emt 0:00:08]} 12. Nd6 {[%emt 0:00:26]} Rc7 {[%emt 0:00:26]} 13. Bd3 {[%emt 0:07:07]} Nf5 {[%emt 0:29:34]} 14. Nb5 {[%emt 0:22:41]} Rc8 {[%emt 0:00:10]} 15. Bxf5 {[%emt 0:16:57]} Qa5+ {[%emt 0:13:15]} 16. b4 {[%emt 0:07:32]} Qxb5 {[%emt 0:00:05]} 17. Bd3 {[%emt 0:03:24]} Qb6 {[%emt 0:00:14]} 18. Bxh7+ {[%emt 0:09:28]} Kxh7 {[%emt 0:00:01]} 19. Qd3+ {[%emt 0:00:08]} g6 {[%emt 0:00:36]} 20. Ng5+ {[%emt 0:00:41]} Kg7 {[%emt 0:00:15]} 21. Rd1 {[%emt 0:02:05]} Qd8 {[%emt 0:05:14]} 22. h4 {[%emt 0:00:38]} Rh8 {[%emt 0:00:31]} 23. Rh3 {[%emt 0:01:47]} Qe7 {[%emt 0:00:28]} 24. Rf3 {[%emt 0:01:05]} Rcf8 {[%emt 0:00:01]} 25. Rf6 {[%emt 0:00:51]} Rxh4 {[%emt 0:01:50]} 26. Qg3 {[%emt 0:00:54]} Rh6 {[%emt 0:02:07]} 27. Kd2 {[%emt 0:00:25]} Nxd4 {[%emt 0:01:32]} 28. f4 {[%emt 0:00:19]} Nf5 {[%emt 0:02:04]} 29. Qf3 {[%emt 0:00:25]} Bc6 {[%emt 0:01:43]} 30. g4 {[%emt 0:00:13]} d4 {[%emt 0:01:29]} 31. Qf2 {[%emt 0:01:14]} Ne3 {[%emt 0:00:17]} 32. Rg1 {[%emt 0:00:21]} Bd5 {[%emt 0:01:58]} 33. Kd3 {[%emt 0:00:21]} Qc7 {[%emt 0:00:40]} 34. Qd2 {[%emt 0:00:12]} Qc4# {[%emt 0:00:17]} 0-1